bitfinex/quotes_SOLUSD_20250206
["timestamp","ask_amount","ask_price","bid_price","bid_amount"]
[1738810149700,0.063,200.4,200.39,20.52753853]
[1738810153750,0.063,200.4,200.39,2.0]
[1738810156239,0.063,200.4,200.39,1.0]
[1738810156430,0.063,200.4,200.39,2.0]
[1738810158734,0.063,200.4,200.39,16.28566354]
[1738810159346,0.063,200.4,200.39,133.03733853]
[1738810160737,0.063,200.4,200.39,138.40400853]
[1738810160942,0.063,200.4,200.39,144.85860853]
[1738810162547,0.063,200.49,200.48,2.0]
[1738810167432,0.063,200.49,200.48,22.0]
[1738810170167,0.063,200.57,200.56,2.0]
[1738810172563,0.063,200.57,200.56,1.0]
[1738810172771,0.063,200.57,200.54,1.0]
[1738810173271,14.91823454,200.56,200.54,1.0]
[1738810173635,19.90433454,200.56,200.54,1.0]
[1738810173865,19.90433454,200.56,200.53,1.0]
[1738810175876,0.063,200.57,200.56,1.0]
[1738810176234,0.063,200.57,200.56,15.91823454]
[1738810176461,0.063,200.57,200.56,1.0]
[1738810179880,0.063,200.57,200.56,147.95430837]
[1738810180047,0.063,200.57,200.56,147.20655307]
[1738810180946,0.063,200.57,200.56,29.70655307]
[1738810183277,0.063,200.57,200.56,1.0]
[1738810183808,0.063,200.57,200.56,21.0]
[1738810184502,0.063,200.57,200.56,1.0]
[1738810188663,0.063,200.57,200.56,35.91823454]
[1738810190372,0.063,200.57,200.56,1.0]
[1738810197312,0.063,200.57,200.56,171.81608307]
[1738810197473,0.063,200.57,200.56,172.19255307]
[1738810198620,0.063,200.57,200.56,173.96494307]
[1738810198905,0.063,200.61,200.6,65.62478761]
[1738810199608,0.063,200.61,200.6,50.70655307]
[1738810199810,0.063,200.61,200.6,55.69155307]
[1738810200381,0.063,200.61,200.6,56.43902273]
[1738810200584,0.063,200.61,200.6,71.48274727]
[1738810201095,0.063,200.61,200.6,56.56451273]
[1738810202518,0.063,200.61,200.6,56.43902273]
[1738810203121,0.063,200.61,200.6,173.93902273]
[1738810203287,0.063,200.61,200.6,173.19155307]
[1738810205317,0.063,200.61,200.6,167.83008307]
[1738810205486,0.063,200.61,200.6,154.41823454]
[1738810206323,0.063,200.61,200.6,36.91823454]
[1738810207327,0.063,200.61,200.6,70.73527761]
[1738810207527,0.063,200.69,200.68,2.0]
[1738810213597,0.063,200.69,200.68,16.91823454]
[1738810215234,0.063,200.69,200.68,35.31308307]
[1738810217735,0.063,200.69,200.68,16.91823454]
[1738810218034,0.063,200.69,200.68,30.33008307]
[1738810219005,0.063,200.69,200.68,36.06037604]
[1738810219430,0.063,200.69,200.68,35.31308307]
[1738810221119,0.063,200.69,200.68,30.33008307]
[1738810223939,0.063,200.69,200.68,147.83008307]
[1738810226337,0.063,200.69,200.68,119.5]
[1738810226518,14.98123454,200.69,200.68,118.5]
[1738810226719,9.59840185,200.69,200.68,118.5]
[1738810227129,0.063,200.69,200.68,118.5]
[1738810229734,0.063,200.69,200.68,119.5]
[1738810230031,0.063,200.69,200.68,2.0]
[1738810230546,0.063,200.69,200.68,1.0]
[1738810230856,0.063,200.69,200.66,1.0]
[1738810231056,9.53540185,200.68,200.64,2.0]
[1738810231232,9.53540185,200.66,200.62,2.0]
[1738810231638,9.53540185,200.64,200.61,0.03]
[1738810231986,9.53540185,200.65,200.62,1.0]
[1738810232258,9.53540185,200.65,200.64,1.0]
[1738810234271,14.51920185,200.65,200.62,1.0]
[1738810235663,9.53540185,200.63,200.61,0.03]
[1738810235887,9.53540185,200.62,200.61,0.03]
[1738810236249,14.51990185,200.62,200.61,0.03]
[1738810236480,9.53540185,200.62,200.61,1.03]
[1738810237474,9.53540185,200.62,200.61,0.03]
[1738810237682,14.51990185,200.62,200.61,0.03]
[1738810239778,16.21429185,200.62,200.61,0.0001]
[1738810239944,16.08880185,200.62,200.61,0.0001]
[1738810242473,29.62614038,200.62,200.61,0.0001]
[1738810242767,16.08880185,200.62,200.61,0.0001]
[1738810244287,16.21429185,200.62,200.61,0.0001]
[1738810245160,29.62614038,200.62,200.61,0.0001]
[1738810247014,67.76774778,200.62,200.61,0.0001]
[1738810247486,67.76774778,200.62,200.49,0.03]
[1738810247487,20.12549,200.58,200.51,1.0]
[1738810247679,9.53540185,200.52,200.5,1.0]
[1738810247866,9.53540185,200.52,200.49,0.03]
[1738810248076,9.53540185,200.5,200.49,1.03]
[1738810249378,9.53540185,200.5,200.49,0.03]
[1738810250256,47.80249925,200.5,200.49,0.03]
[1738810250882,0.25098,200.48,200.42,1.0]
[1738810251085,9.53540185,200.44,200.41,1.0]
[1738810251295,9.53540185,200.42,200.41,1.0]
[1738810251493,9.53540185,200.42,200.4,0.03]
[1738810253301,4.9897,200.41,200.4,0.03]
[1738810253508,5.24068,200.41,200.4,0.03]
[1738810254007,34.52510185,200.41,200.4,0.03]
[1738810254214,9.53540185,200.41,200.4,1.03]
[1738810254531,9.53540185,200.44,200.41,1.0]
[1738810254703,14.93703503,200.43,200.41,1.0]
[1738810254911,14.93703503,200.42,200.4,1.03]
[1738810255084,14.93703503,200.42,200.4,0.03]
[1738810255507,4.9897,200.41,200.4,0.03]
[1738810256199,19.92673503,200.41,200.4,0.03]
[1738810257692,33.46407356,200.41,200.4,0.03]
[1738810261424,19.92673503,200.41,200.4,0.03]
[1738810262224,33.46407356,200.41,200.4,0.03]
[1738810265212,19.92673503,200.41,200.4,0.03]
[1738810274934,48.40110859,200.41,200.4,0.0001]
[1738810275129,60.87550859,200.41,200.36,0.03]
[1738810275320,14.93703503,200.37,200.36,0.03]
[1738810276234,33.46507356,200.37,200.36,0.03]
[1738810276435,13.53733853,200.36,200.3,1.0]
[1738810276611,9.57128512,200.31,200.3,1.0]
[1738810277232,9.57128512,200.32,200.3,1.0]
[1738810277624,9.57128512,200.31,200.3,1.0]
[1738810277930,9.57128512,200.31,200.28,1.03]
[1738810278233,9.57128512,200.29,200.28,0.03]
[1738810278434,14.56398512,200.29,200.28,0.03]
[1738810280237,9.57128512,200.3,200.28,2.03]
[1738810280741,9.57128512,200.29,200.28,2.03]
[1738810282154,9.57128512,200.31,200.28,2.03]
[1738810282324,4.9917,200.34,200.31,2.0]
[1738810282662,4.9917,200.34,200.28,0.03]
[1738810282663,14.56228512,200.36,200.34,1.0]
[1738810284347,9.57128512,200.35,200.34,1.0]
[1738810284762,9.57128512,200.35,200.33,1.0]
[1738810284922,14.56248512,200.35,200.33,1.0]
[1738810285523,9.57128512,200.34,200.33,1.0]
[1738810287346,9.57128512,200.34,200.32,1.0]
[1738810287347,14.56278512,200.34,200.32,1.0]
[1738810287643,9.57128512,200.33,200.3,2.03]
[1738810287848,9.57128512,200.32,200.3,2.03]
[1738810288153,9.57128512,200.32,200.3,0.03]
[1738810288347,9.57128512,200.31,200.3,0.03]
[1738810289150,14.56348512,200.31,200.3,0.03]
[1738810290059,0.063,200.36,200.3,1.03]
[1738810290232,9.63428512,200.36,200.35,1.0]
[1738810290433,9.63428512,200.36,200.34,1.0]
[1738810290638,9.57128512,200.35,200.34,1.0]
[1738810291235,9.57128512,200.35,200.33,1.0]
[1738810291437,9.57128512,200.34,200.33,1.0]
[1738810293856,0.063,200.36,200.35,1.0]
[1738810294838,0.063,200.36,200.35,10.57128512]
[1738810295065,0.063,200.36,200.35,151.09762001]
[1738810295362,9.63428512,200.49,200.48,1.0]
[1738810296736,14.99216538,200.49,200.45,1.0]
[1738810296941,14.92916538,200.46,200.45,1.0]
[1738810298356,5.0509,200.49,200.44,1.0]
[1738810298357,14.92916538,200.48,200.47,1.0]
[1738810298571,0.063,200.49,200.47,2.0]
[1738810301149,0.063,200.49,200.47,84.74803305]
[1738810301448,0.063,200.49,200.47,84.0]
[1738810301848,14.92916538,200.48,200.47,84.0]
[1738810303562,14.92916538,200.48,200.47,1.0]
[1738810304458,14.92916538,200.48,200.41,82.0]
[1738810304459,14.92916538,200.48,200.43,1.0]
[1738810304660,14.92916538,200.44,200.41,1.0]
[1738810304843,14.92916538,200.42,200.41,1.0]
[1738810306266,19.91876538,200.42,200.4,1.0]
[1738810306450,19.91876538,200.42,200.39,1.0]
[1738810306654,14.92916538,200.4,200.39,1.0]
[1738810308879,14.92916538,200.42,200.41,1.0]
[1738810309054,14.92916538,200.42,200.41,2.0]
[1738810309456,14.92916538,200.44,200.41,2.0]
[1738810309677,14.92916538,200.44,200.43,1.0]
[1738810310879,19.91816538,200.44,200.43,2.0]
[1738810312087,19.91816538,200.44,200.41,2.0]
[1738810312280,14.92916538,200.42,200.39,2.0]
[1738810312479,14.92916538,200.4,200.39,2.0]
[1738810316563,19.91916538,200.4,200.39,1.0]
[1738810316763,19.91916538,200.4,200.37,2.0]
[1738810316985,14.92916538,200.38,200.37,2.0]
[1738810317365,14.92916538,200.38,200.37,1.0]
[1738810317582,28.34101391,200.38,200.36,0.03]
[1738810317760,28.34101391,200.37,200.36,0.03]
[1738810318255,33.33171391,200.37,200.36,0.03]
[1738810318686,33.45720391,200.37,200.36,0.03]
[1738810319691,13.41184853,200.36,200.3,1.03]
[1738810319861,14.92916538,200.31,200.3,0.03]
[1738810321191,15.05465538,200.31,200.3,0.03]
[1738810321683,48.51335929,200.31,200.3,0.0001]
[1738810322387,48.63884929,200.31,200.3,0.0001]
[1738810322790,0.25098,200.29,200.23,0.03]
[1738810322973,15.05465538,200.24,200.23,0.03]
[1738810323377,28.59199391,200.24,200.23,0.03]
[1738810323890,33.58599391,200.24,200.23,0.03]
[1738810326086,33.58599391,200.24,200.22,0.03]
[1738810326294,28.46650391,200.23,200.22,0.03]
[1738810327300,33.53733853,200.2,200.19,0.03]
[1738810327589,48.46650391,200.2,200.19,0.03]
[1738810327771,63.39566929,200.2,200.19,0.03]
[1738810328190,34.92916538,200.2,200.19,0.03]
[1738810328993,48.46650391,200.2,200.19,0.03]
[1738810329191,34.92916538,200.2,200.19,0.03]
[1738810329491,14.92916538,200.2,200.19,0.03]
[1738810330592,29.85833076,200.2,200.19,0.03]
[1738810331094,14.92916538,200.2,200.19,0.03]
[1738810331293,14.92916538,200.2,200.15,1.59]
[1738810331594,14.92916538,200.16,200.15,1.59]
[1738810332278,14.92916538,200.17,200.15,1.59]
[1738810333829,14.92916538,200.18,200.15,1.59]
[1738810333990,14.92916538,200.2,200.19,1.0]
[1738810334489,14.92916538,200.2,200.19,1.59]
[1738810334692,14.92916538,200.2,200.17,1.59]
[1738810334903,14.92916538,200.19,200.17,1.59]
[1738810335210,14.92916538,200.19,200.17,0.59]
[1738810335510,14.92916538,200.19,200.17,1.59]
[1738810337310,14.92916538,200.23,200.22,1.0]
[1738810337496,14.92916538,200.23,200.22,1.59]
[1738810337892,14.92916538,200.25,200.24,1.59]
[1738810338101,14.92916538,200.25,200.18,4.9955]
[1738810338102,14.92916538,200.27,200.26,1.59]
[1738810340017,14.92916538,200.29,200.28,1.0]
[1738810340315,14.92916538,200.29,200.28,1.59]
[1738810340617,0.063,200.31,200.3,1.59]
[1738810340618,14.99216538,200.31,200.3,1.59]
[1738810341309,14.99216538,200.31,200.3,1.0]
[1738810341721,4.9925,200.3,200.28,1.0]
[1738810341894,14.92916538,200.29,200.28,1.0]
[1738810342300,14.92916538,200.29,200.26,1.59]
[1738810342514,14.92916538,200.27,200.26,1.59]
[1738810344634,14.92916538,200.27,200.26,1.0]
[1738810344796,14.92916538,200.27,200.23,1.0]
[1738810344998,14.92916538,200.24,200.23,1.0]
[1738810345712,14.92916538,200.24,200.22,0.59]
[1738810346218,14.92916538,200.23,200.22,0.59]
[1738810347620,14.99216538,200.27,200.24,1.59]
[1738810347798,14.99216538,200.27,200.26,0.59]
[1738810347999,14.99216538,200.27,200.26,1.59]
[1738810350628,0.063,200.27,200.26,1.59]
[1738810356643,0.063,200.27,200.26,21.63815538]
[1738810356945,0.063,200.27,200.26,153.80098391]
[1738810357908,0.063,200.27,200.26,119.09]
[1738810359710,0.063,200.27,200.26,1.59]
[1738810359919,14.99216538,200.27,200.26,1.59]
[1738810360225,14.99216538,200.27,200.26,1.0]
[1738810361543,4.9935,200.26,200.21,1.59]
[1738810361708,14.92916538,200.22,200.21,1.59]
[1738810362342,14.92916538,200.22,200.21,1.0]
[1738810363915,4.9947,200.21,200.19,1.59]
[1738810364122,14.92916538,200.2,200.19,1.59]
[1738810364350,14.92916538,200.2,200.17,1.59]
[1738810364510,14.92916538,200.18,200.17,1.0]
[1738810365021,19.92466538,200.18,200.17,1.0]
[1738810367839,19.92466538,200.18,200.15,1.62]
[1738810369319,14.92916538,200.16,200.15,1.62]
[1738810371545,14.92916538,200.17,200.15,1.62]
[1738810371750,14.92916538,200.19,200.15,1.62]
[1738810371957,14.92916538,200.17,200.15,1.62]
[1738810372110,6.6487,200.21,200.15,0.03]
[1738810372111,14.92916538,200.16,200.15,0.03]
[1738810372441,14.92916538,200.16,200.15,0.62]
[1738810373540,14.92916538,200.16,200.15,0.03]
[1738810373730,19.92516538,200.16,200.15,0.03]
[1738810378524,19.92476538,200.18,200.15,1.62]
[1738810379056,14.92916538,200.16,200.15,1.03]
[1738810379430,14.92916538,200.16,200.15,1.62]
[1738810379752,19.92466538,200.18,200.17,1.0]
[1738810379956,14.92916538,200.18,200.17,1.59]
[1738810380948,19.92426538,200.2,200.19,1.0]
[1738810381246,14.92916538,200.2,200.19,1.0]
[1738810382570,4.9952,200.19,200.15,1.62]
[1738810382744,14.92916538,200.16,200.15,0.62]
[1738810383044,14.92916538,200.16,200.15,0.03]
[1738810383646,19.92516538,200.16,200.15,0.62]
[1738810384655,14.92916538,200.16,200.15,0.62]
[1738810384856,14.92916538,200.16,200.15,1.62]
[1738810385731,14.92916538,200.16,200.15,0.62]
[1738810388165,20.0,200.14,200.12,0.03]
[1738810388345,20.0,200.06,199.97,6.1253]
[1738810388658,14.92916538,200.05,200.04,0.88]
[1738810390059,28.34101391,200.05,200.04,0.88]
[1738810390456,33.33971391,200.05,200.04,0.88]
[1738810391756,19.92786538,200.05,200.04,0.88]
[1738810392655,14.92916538,200.05,200.04,0.88]
[1738810394460,14.92916538,200.07,200.04,0.88]
[1738810394763,14.92916538,200.07,200.06,0.88]
[1738810396267,14.92916538,200.07,200.04,0.91]
[1738810396442,14.92916538,200.05,200.04,0.91]
[1738810402671,19.92786538,200.05,200.04,0.91]
[1738810404775,14.92916538,200.05,200.04,0.91]
[1738810404956,14.92916538,200.06,200.04,0.91]
[1738810405146,14.92916538,200.05,200.04,0.91]
[1738810407366,14.99216538,200.05,200.04,0.91]
[1738810408353,19.99086538,200.05,200.04,0.91]
[1738810409068,33.40271391,200.05,200.04,0.91]
[1738810410774,19.99086538,200.05,200.04,0.91]
[1738810410970,14.99216538,200.05,200.04,0.91]
[1738810413978,20.0,200.01,199.9,214.42916538]
[1738810414157,14.92916538,199.95,199.88,117.5]
[1738810414870,9.60624978,199.94,199.88,117.5]
[1738810415064,9.60624978,199.96,199.89,5.0027]
[1738810415261,9.60624978,199.95,199.89,5.0027]
[1738810415570,9.60624978,199.98,199.9,9.60624978]
[1738810415778,9.60624978,199.98,199.91,15.75464978]
[1738810415977,9.60624978,199.99,199.91,16.50478187]
[1738810416491,9.60624978,199.98,199.91,15.75464978]
[1738810416662,15.00490417,199.98,199.91,21.90343086]
[1738810416868,15.00490417,200.0,199.92,15.13039417]
[1738810417178,15.00490417,200.0,199.94,5.0015]
[1738810417374,15.00490417,200.01,199.94,20.00640417]
[1738810418879,15.00490417,200.0,199.94,5.0015]
[1738810419474,15.00490417,199.99,199.94,5.0015]
[1738810420178,15.00490417,199.99,199.94,82.0]
[1738810420354,15.00490417,200.0,199.94,82.0]
[1738810421077,15.00490417,199.99,199.94,82.0]
[1738810421281,15.00490417,199.97,199.94,82.0]
[1738810421575,15.00490417,199.96,199.94,82.0]
[1738810421771,15.00490417,199.96,199.91,6.1784]
[1738810423383,15.00490417,199.97,199.91,6.1784]
[1738810423678,15.00490417,199.98,199.91,6.1784]
[1738810424659,15.00490417,199.97,199.91,6.1784]
[1738810425593,15.00490417,199.96,199.91,6.1784]
[1738810425793,15.00490417,199.96,199.91,88.1784]
[1738810426276,15.00490417,199.95,199.91,88.1784]
[1738810427682,15.00490417,199.96,199.91,88.1784]
[1738810428770,15.00490417,200.0,199.93,15.00490417]
[1738810429281,15.00490417,199.99,199.92,15.75506113]
[1738810429466,15.00490417,199.99,199.92,97.75506113]
[1738810429667,15.00490417,199.99,199.92,97.00490417]
[1738810429967,15.00490417,199.99,199.92,102.00660417]
[1738810430287,4.9997,200.01,199.94,15.00490417]
[1738810430288,15.00490417,200.01,199.94,15.00490417]
[1738810431681,15.00490417,200.01,199.93,0.75004164]
[1738810431682,15.00490417,200.01,199.93,15.75494581]
[1738810431894,15.00490417,200.01,199.94,5.0014]
[1738810432203,15.00490417,200.0,199.94,5.0014]
[1738810432489,15.00490417,199.99,199.93,0.75004164]
[1738810432695,15.00490417,199.97,199.92,199.5]
[1738810434690,15.00490417,199.98,199.92,199.5]
[1738810436890,15.00490417,199.98,199.92,204.5019]
[1738810437589,15.00490417,200.0,199.93,15.75498603]
[1738810437889,15.00490417,200.0,199.93,0.75008186]
[1738810438690,15.00490417,200.0,199.93,5.75178186]
[1738810438691,9.60131245,200.0,199.93,5.75178186]
[1738810438876,9.60131245,200.0,199.94,0.12549]
[1738810439078,9.60131245,200.01,199.94,0.12549]
[1738810439484,9.60131245,199.99,199.92,199.5]
[1738810439702,9.60131245,199.97,199.92,199.5]
[1738810439881,9.60131245,199.96,199.92,82.0]
[1738810440071,9.60131245,199.95,199.92,82.0]
[1738810440395,9.60131245,199.93,199.91,0.03]
[1738810440687,9.60131245,199.92,199.91,0.03]
[1738810442794,15.01186453,199.93,199.91,0.03]
[1738810442993,15.01186453,199.94,199.91,0.03]
[1738810445198,15.01186453,199.97,199.91,0.03]
[1738810445382,15.01186453,199.98,199.91,0.03]
[1738810445706,15.01186453,199.97,199.91,0.03]
[1738810445999,1.5841,200.0,199.91,0.03]
[1738810446000,15.01186453,199.96,199.91,0.03]
[1738810448100,15.01186453,199.94,199.91,0.03]
[1738810448282,15.01186453,199.93,199.91,0.03]
[1738810450691,15.01186453,199.92,199.91,0.03]
[1738810452885,15.01186453,199.93,199.91,0.03]
[1738810456697,15.01186453,199.92,199.91,0.03]
[1738810457995,15.01186453,199.93,199.91,0.03]
[1738810459008,12.5006,199.99,199.91,0.03]
[1738810459009,15.01186453,199.92,199.91,0.03]
[1738810459720,15.01186453,199.95,199.91,0.03]
[1738810459886,15.01186453,199.97,199.91,0.03]
[1738810460202,15.01186453,199.94,199.91,0.03]
[1738810462308,5.0013,199.95,199.91,0.03]
[1738810462309,15.01186453,199.96,199.91,0.03]
[1738810462511,1.5841,200.0,199.92,36.66006453]
[1738810462512,15.01186453,200.0,199.92,36.66006453]
[1738810462691,20.01176453,200.01,199.94,15.01186453]
[1738810463111,15.01186453,200.0,199.93,132.51186453]
[1738810463426,15.01186453,199.96,199.93,117.5]
[1738810463593,15.01186453,199.96,199.91,0.03]
[1738810464615,9.60450771,199.96,199.91,0.03]
[1738810465111,9.60450771,200.0,199.92,9.60450771]
[1738810465321,9.60450771,200.01,199.93,29.60450771]
[1738810465530,4.9996,200.02,199.93,20.0]
[1738810465531,9.60450771,199.98,199.93,20.0]
[1738810466013,9.60450771,199.99,199.93,20.0]
[1738810466310,9.60450771,199.98,199.93,20.0]
[1738810467309,9.60450771,199.99,199.93,20.0]
[1738810470615,9.60450771,199.98,199.93,20.0]
[1738810472315,9.60450771,199.98,199.92,5.0019]
[1738810473228,9.60450771,199.99,199.92,5.0019]
[1738810473407,9.60450771,200.0,199.92,14.60640771]
[1738810473592,9.60450771,200.0,199.93,0.12549]
[1738810473792,9.60450771,200.0,199.93,10.4800313]
[1738810473988,9.60450771,199.99,199.93,0.87552359]
[1738810474206,9.60450771,199.99,199.93,0.12549]
[1738810474832,9.60450771,199.99,199.93,5.12719]
[1738810474995,9.60450771,199.99,199.93,5.0017]
[1738810475314,9.60450771,199.97,199.92,117.5]
[1738810476017,9.60450771,199.96,199.92,117.5]
[1738810476597,9.60450771,199.95,199.92,117.5]
[1738810477115,9.60450771,199.95,199.91,0.03]
[1738810477298,9.60450771,199.94,199.91,0.03]
[1738810477694,9.60450771,199.95,199.91,0.03]
[1738810477913,9.60450771,199.96,199.91,0.03]
[1738810478823,9.60450771,199.95,199.91,0.03]
[1738810479424,9.60450771,199.96,199.91,0.03]
[1738810480313,9.60450771,199.97,199.91,0.03]
[1738810480508,85.17209,200.05,199.92,0.12549]
[1738810480509,9.60450771,199.99,199.92,0.12549]
[1738810480709,9.60450771,200.0,199.94,0.12549]
[1738810480909,9.60450771,199.99,199.94,0.12549]
[1738810483216,9.60450771,200.0,199.94,0.12549]
[1738810485448,9.60450771,200.0,199.94,199.62549]
[1738810487330,4.9998,200.01,199.94,199.62549]
[1738810487331,9.60450771,199.99,199.94,199.5]
[1738810487539,9.60450771,199.98,199.94,199.5]
[1738810487716,9.60450771,199.97,199.94,199.5]
[1738810487915,9.60450771,199.96,199.94,82.0]
[1738810489443,9.60450771,199.97,199.94,82.0]
[1738810489751,9.60450771,199.98,199.94,82.0]
[1738810490220,9.60450771,200.0,199.94,87.0014]
[1738810490721,9.60450771,199.99,199.94,87.0014]
[1738810491339,9.60450771,200.0,199.95,0.12549]
[1738810491841,9.60450771,200.01,199.95,0.25098]
[1738810492014,9.66750771,200.04,199.97,0.12549]
[1738810492222,9.66750771,200.04,199.97,209.97985322]
[1738810492535,9.66750771,200.04,199.98,5.12589]
[1738810492740,0.063,200.04,199.99,0.12549]
[1738810493039,0.063,200.04,200.01,0.12549]
[1738810493230,0.063,200.04,200.03,9.85548771]
[1738810493438,0.063,200.04,200.03,227.41403384]
[1738810493633,0.063,200.04,200.03,226.66441624]
[1738810493835,7.79909971,200.1,200.09,0.12549]
[1738810494142,7.79909971,200.1,200.09,199.5]
[1738810495244,9.60450771,200.12,200.09,199.5]
[1738810495945,9.60450771,200.14,200.09,199.5]
[1738810496445,9.60450771,200.15,200.09,199.5]
[1738810496639,9.60450771,200.15,200.09,82.0]
[1738810497743,9.60450771,200.15,200.1,0.12549]
[1738810500272,9.60450771,200.15,200.1,82.12549]
[1738810501336,9.60450771,200.11,200.1,82.0]
[1738810502037,17.4852,200.17,200.1,82.0]
[1738810502038,9.60450771,200.12,200.1,82.12549]
[1738810502354,17.4852,200.17,200.1,82.12549]
[1738810502355,9.60450771,200.17,200.1,91.60450771]
[1738810502527,9.60450771,200.16,200.1,82.0]
[1738810502727,9.60450771,200.17,200.11,0.25098]
[1738810503146,0.063,200.15,200.11,0.25098]
[1738810503752,9.60450771,200.14,200.1,82.0]
[1738810504066,9.66750771,200.15,200.1,82.0]
[1738810504570,0.063,200.15,200.11,0.12549]
[1738810505368,0.063,200.15,200.11,0.87486102]
[1738810505557,0.063,200.15,200.14,9.85548771]
[1738810505850,0.063,200.15,200.14,224.64207252]
[1738810506032,0.063,200.15,200.14,230.16542624]
[1738810506229,0.063,200.15,200.14,229.16542624]
[1738810506835,0.063,200.15,200.14,234.16192624]
[1738810507059,0.063,200.15,200.14,235.16192624]
[1738810507272,0.063,200.15,200.14,236.16192624]
[1738810507750,0.063,200.15,200.14,236.28741624]
[1738810507935,0.063,200.15,200.14,548.28741624]
[1738810509362,0.063,200.15,200.14,547.16192624]
[1738810509569,0.063,200.2,200.17,1.0]
[1738810509787,0.063,200.2,200.19,23.39282624]
[1738810510137,0.063,200.2,200.19,223.89282624]
[1738810510343,0.063,200.2,200.19,231.83922624]
[1738810510648,0.063,200.25,200.23,13.66282853]
[1738810510847,0.063,200.25,200.24,10.47881546]
[1738810511048,0.063,200.25,200.24,224.64164399]
[1738810511249,0.063,200.25,200.24,223.89282624]
[1738810511449,0.063,200.25,200.24,227.88682624]
[1738810511650,0.063,200.25,200.24,228.88682624]
[1738810512764,0.063,200.25,200.24,546.23210987]
[1738810514372,0.063,200.25,200.24,546.35759987]
[1738810514574,0.0001,200.27,200.26,2.37647]
[1738810514753,0.0001,200.27,200.26,48.08104478]
[1738810514943,0.063,200.31,200.3,45.81339121]
[1738810515139,0.0001,200.31,200.3,246.06186234]
[1738810515464,0.0001,200.31,200.3,245.31339121]
[1738810516640,0.0001,200.31,200.3,250.30589121]
[1738810517142,0.063,200.39,200.38,20.25098]
[1738810517461,0.063,200.39,200.38,166.98644529]
[1738810517764,0.063,200.4,200.39,14.91380853]
[1738810518087,0.063,200.4,200.39,28.73810987]
[1738810518257,0.063,200.4,200.39,117.75098]
[1738810518652,0.063,200.4,200.39,132.70077134]
[1738810520137,0.063,200.4,200.39,146.23810987]
[1738810520546,0.063,200.4,200.39,132.70077134]
[1738810520845,0.063,200.4,200.39,146.23810987]
[1738810521069,0.063,200.4,200.39,148.23810987]
[1738810522679,0.063,200.4,200.39,148.36359987]
[1738810523195,0.063,200.4,200.39,228.23810987]
[1738810525302,0.063,200.4,200.39,199.75098]
[1738810525462,0.063,200.4,200.39,199.62549]
[1738810526159,0.063,200.4,200.39,214.70077134]
[1738810526374,0.063,200.4,200.39,228.23810987]
[1738810528585,0.063,200.4,200.39,199.75098]
[1738810529104,0.063,200.4,200.39,199.5]
[1738810529764,0.063,200.4,200.39,199.75098]
[1738810529983,0.063,200.4,200.39,214.70077134]
[1738810530373,0.063,200.4,200.39,219.69097134]
[1738810530574,0.063,200.4,200.39,199.75098]
[1738810531370,0.063,200.4,200.39,214.70077134]
[1738810531977,0.063,200.4,200.39,199.75098]
[1738810532385,0.063,200.4,200.39,199.5]
[1738810532695,0.063,200.4,200.38,0.03]
[1738810533594,14.94979134,200.39,200.38,0.03]
[1738810537280,5.0532,200.4,200.38,0.03]
[1738810537579,20.00299134,200.4,200.38,0.03]
[1738810537981,14.94979134,200.39,200.38,0.03]
[1738810541189,19.93999134,200.39,200.38,0.03]
[1738810543299,45.82743987,200.39,200.31,82.0]
[1738810543481,14.94979134,200.32,200.27,82.0]